Cogmind - Beta 13 @@@ ROGUE MODE // 2024.07.05 @ 17:36:53 Player: Juicifer Result: Destroyed by H-55 Commando with Gauss Rifle Performance ------------- Evolutions (2) 1000 Regions Visited (5) 1000 Robots Destroyed (56) 280 Value Destroyed (1504) 1504 Prototype IDs (26) 520 Alien Tech Used (0) 0 Bonus (437) 437 TOTAL SCORE: 4741 Bonus ------- High Alert Combat Kills 97 Follower Combat Kills 40 Aligned with FarCom 300 Cogmind --------- Core Integrity 0/550 Matter 290/300 Energy 250/250 System Corruption 0% Temperature Cool (0) Movement Core (1550) Ox30 Location -8/Materials Parts ------- > --- POWER (1) -------- Micro Nuclear Core > --- PROPULSION (4) --- (None) > --- UTILITY (4) ------ Huge Storage Unit Small Battery Targeting Computer > --- WEAPON (2) ------- Mini Grenade Launcher Axe > --- INVENTORY (25) --- Cooled Ion Engine High-capacity Matter Pod (200) Firepult Mining Laser Peak State ------------ > --- POWER ------------ Micro Nuclear Core > --- PROPULSION ------- Medium Treads Medium Treads Medium Treads Medium Treads > --- UTILITY ---------- Huge Storage Unit Experimental Sensor Array > --- WEAPON ----------- Firepult > --- INVENTORY -------- Micro Nuclear Core Small Battery Large Matter Pod Targeting Computer Tractor Beam Medium Laser Beam Cannon Assault Rifle Grenade Launcher Rocket Launcher Mining Laser [Rating: 51] Favorites ----------- Power Ion Engine Engine Ion Engine Power Core Micro Nuclear Core Propulsion Light Treads Treads Light Treads Leg Aluminum Leg Utility Huge Storage Unit Device Experimental Sensor Array Storage Huge Storage Unit Processor Signal Interpreter Weapon Medium Laser Energy Gun Medium Laser Energy Cannon Beam Cannon Ballistic Gun Assault Rifle Launcher Grenade Launcher Slashing Weapon Axe Build | -11 -10 -10 -10 -9 -8 ------- Run | Yrd Mat Min Exi Min Mat Slots Evolved 4 | . . . . . 4 Power . | . . . . . . Propulsion 2 | . . . . . 2 Utility 2 | . . . . . 2 Weapon . | . . . . . . Parts Attached 35 | 6 7 2 2 . 18 Power 4 | 1 1 . . . 2 Engine 2 | 1 1 . . . . Core 2 | . . . . . 2 Reactor . | . . . . . . Propulsion 9 | 2 2 . . . 5 Treads 8 | 2 2 . . . 4 Leg 1 | . . . . . 1 Wheel . | . . . . . . Hover . | . . . . . . Flight . | . . . . . . Utility 7 | 1 2 . 1 . 3 Device 2 | . . . 1 . 1 Storage 3 | 1 1 . . . 1 Processor 2 | . 1 . . . 1 Hackware . | . . . . . . Protection . | . . . . . . Artifact . | . . . . . . Weapon 15 | 2 2 2 1 . 8 Energy Gun 3 | 1 . 1 . . 1 Energy Cannon 4 | . 1 . 1 . 2 Ballistic Gun 2 | 1 . . . . 1 Ballistic Cannon . | . . . . . . Launcher 5 | . 1 1 . . 3 Special Weapon . | . . . . . . Impact Weapon . | . . . . . . Slashing Weapon 1 | . . . . . 1 Piercing Weapon . | . . . . . . Special Melee Weapon . | . . . . . . Unidentified Prototypes 2 | . . . 2 . . Parts Lost 15 | . 2 . . . 13 Power 2 | . 1 . . . 1 Propulsion 6 | . 1 . . . 5 Utility 2 | . . . . . 2 Weapon 5 | . . . . . 5 Highest Loss Streak 4 | . 1 . . . 4 To Critical Strikes 1 | . . . . . 1 Average Slot Usage (%) 91 | . 96 100 95 85 54 Engine 12 | . 14 14 14 14 1 Treads 25 | . 27 28 28 28 6 Device 2 | . . . 4 14 6 Storage 14 | . 13 14 14 14 16 Processor 10 | . 11 14 9 . 5 Energy Gun 11 | . 14 14 9 . 4 Energy Cannon 9 | . 3 14 14 14 7 Ballistic Gun 2 | . 6 . . . . Launcher 1 | . 3 . . . 1 Naked Turns . | . . . . . . Heaviest Build 109 | 12 90 90 108 108 109 Greatest Support 112 | 40 40 40 40 40 112 Greatest Overweight (x) 36 | . 4 2 2 2 36 Average Overweight (x) 2 | . 1 2 2 2 13 Largest Inventory Capacity 25 | 8 25 25 25 25 25 Average Capacity 24 | 7 24 25 25 25 25 Most Carried 14 | 5 8 9 12 11 14 Average Carried 7 | . 5 8 9 10 8 Final Capacity 25 | 8 25 25 25 25 25 Final Carried 11 | 1 7 9 10 11 5 Class Distribution -------------------- 94% | Mutant 5% | Skirmisher Dominant Class ---------------- Mutant | -10/Materials Mutant | -10/Mines Mutant | -10/Exiles Skirmisher | -9/Mines Mutant | -8/Materials Resources | -11 -10 -10 -10 -9 -8 ----------- Run | Yrd Mat Min Exi Min Mat Matter Collected 1156 | 218 393 21 . 18 506 Remotely 347 | . . . . . 347 Salvage Created 1832 | . 760 20 . . 1052 Parts 92 | . 50 6 . . 36 Haulers Intercepted 3 | . 1 . . . 2 Recyclers Shooed 2 | . 1 . . . 1 Parts Field Recycled . | . . . . . . Retrieved Matter . | . . . . . . Parts Self-Destructed . | . . . . . . Prevented . | . . . . . . Kills | -11 -10 -10 -10 -9 -8 ------- Run | Yrd Mat Min Exi Min Mat Combat Hostiles Destroyed 36 | . 14 3 . . 19 Guns 6 | . 5 . . . 1 Cannons 7 | . 4 1 . . 2 AOE 20 | . 5 2 . . 13 Classes Destroyed 12 | . 7 . . . 5 Worker 3 | . 1 . . . 2 Builder 3 | . 1 . . . 2 Tunneler 1 | . . . . . 1 Hauler 3 | . 1 . . . 2 Recycler 5 | . 3 . . . 2 Watcher 5 | . 3 . . . 2 Swarmer 11 | . 3 3 . . 5 Grunt 21 | . 11 . . . 10 Duelist 1 | . . . . . 1 Protector 1 | . . . . . 1 Sentry 1 | . . . . . 1 Hunter 1 | . . . . . 1 Best Kill Streak 16 | . 6 3 . . 16 Combat Bots Only 10 | . 5 3 . . 10 Max Kills in Single Turn 4 | . 3 2 . . 4 Gunslinging . | . . . . . . Exploded 3 | . 3 2 . . 3 Melee . | . . . . . . Uniques/NPCs Destroyed . | . . . . . . Combat | -11 -10 -10 -10 -9 -8 -------- Run | Yrd Mat Min Exi Min Mat Hostile Shots Fired 212 | . 66 11 . . 135 Missed 52 | . 18 4 . . 30 Damage Taken 2160 | . 530 55 . . 1575 Core 633 | . 71 2 . . 560 Absorbed by Shields . | . . . . . . Regen/Repaired (Parts) 127 | . 127 . . . . Core Remaining (%) 85 | 100 . . . 70 . Volleys Fired 90 | . 51 2 . . 37 Largest 2 | . 2 2 . . 2 Hottest 250 | . 110 90 . . 250 Shots Fired 151 | . 93 3 . . 55 Gun 92 | . 73 . . . 19 Cannon 48 | . 13 2 . . 33 Launcher 11 | . 7 1 . . 3 Special . | . . . . . . Kinetic 28 | . 24 . . . 4 Thermal 112 | . 62 2 . . 48 Explosive 11 | . 7 1 . . 3 Electromagnetic . | . . . . . . Robot Hit Streak 6 | . 6 2 . . 5 Robot Miss Streak 4 | . 4 1 . . 4 Penetration Max . | . . . . . . Secondary Targets . | . . . . . . Shots Hit Robots 87 | . 53 2 . . 32 Core Hits 93 | . 39 3 . . 51 Critical Kills . | . . . . . . Critical Parts Destroyed . | . . . . . . Critical Strikes 8 | . 7 . . . 1 Burn 8 | . 7 . . . 1 Melee Attacks . | . . . . . . Impact . | . . . . . . Slashing . | . . . . . . Piercing . | . . . . . . Sneak Attacks . | . . . . . . Combat Hostiles . | . . . . . . Follow-up Attacks . | . . . . . . Damage Inflicted 3528 | . 1088 165 . . 2275 Guns 703 | . 590 . . . 113 Cannons 673 | . 142 36 . . 495 Explosions 2145 | . 356 122 . . 1667 Melee . | . . . . . . Ramming 7 | . . 7 . . . Kinetic 210 | . 199 . . . 11 Thermal 2003 | . 533 36 . . 1434 Explosive 1308 | . 356 122 . . 830 Electromagnetic . | . . . . . . Impact . | . . . . . . Slashing . | . . . . . . Piercing . | . . . . . . Highest Corruption . | . . . . . . Average Corruption . | . . . . . . Corruption Purged . | . . . . . . Corruption Blocked . | . . . . . . Overload Shots . | . . . . . . Overflow Damage 54 | . 10 2 . . 42 Projectiles 13 | . 10 2 . . 1 Explosions 41 | . . . . . 41 Melee . | . . . . . . Knockbacks . | . . . . . . Impact . | . . . . . . Kinetic . | . . . . . . Secondary . | . . . . . . Self-Inflicted Damage 7 | . . 7 . . . Shots 1 | . . 1 . . . Rammed 2 | . . 2 . . . Targets Rammed 2 | . . 2 . . . Kicked . | . . . . . . Crushed . | . . . . . . Highest Temperature 1008 | . 378 50 . . 1008 Average Temperature 164 | . 102 27 . . 258 Received Heat Transfer 480 | . 291 . . . 189 Effects 41 | . 3 . . . 38 Shutdowns 5 | . . . . . 5 Energy Bleed 2 | . . . . . 2 Interference 5 | . 3 . . . 2 Matter Decay 2 | . . . . . 2 Short Circuit 4 | . . . . . 4 Damage (minor) 2 | . . . . . 2 Damage (major) 17 | . . . . . 17 Damage (core) 4 | . . . . . 4 Siege Activations . | . . . . . . Robots Corrupted . | . . . . . . Combat Hostiles . | . . . . . . Parts Fried . | . . . . . . Impact Corruptions . | . . . . . . Robots Melted 4 | . . . . . 4 Combat Hostiles 3 | . . . . . 3 Parts Melted 28 | . 3 . . . 25 Heat Transferred 8530 | . 1961 74 . . 6495 Parts Sabotaged . | . . . . . . Parts Stolen . | . . . . . . Parts Stripped . | . . . . . . Power Chain Reactions . | . . . . . . Alert | -11 -10 -10 -10 -9 -8 ------- Run | Yrd Mat Min Exi Min Mat Peak Influence 596 | . 237 154 . . 596 Initial 52 | . . 52 . . . Average 117 | . 80 40 . . 436 Maximum Alert Level 2 | . 1 . . . 2 Low Security (%) 85 | 100 99 100 . 100 7 Level 1 3 | . . . . . 23 Level 2 10 | . . . . . 68 Level 3 . | . . . . . . Level 4 . | . . . . . . Level 5 . | . . . . . . High Security . | . . . . . . Max Security . | . . . . . . Squads Dispatched 7 | . 3 . . . 4 Investigation 2 | . 2 . . . . Extermination . | . . . . . . Reinforcement 3 | . 1 . . . 2 Assault 1 | . . . . . 1 Garrison 1 | . . . . . 1 Intercept . | . . . . . . Searches Triggered . | . . . . . . Construction Impeded 1 | . . . . . 1 Haulers Reinforced . | . . . . . . Active Scanning Responses . | . . . . . . Cargo Convoy Interrupts . | . . . . . . Stealth | -11 -10 -10 -10 -9 -8 --------- Run | Yrd Mat Min Exi Min Mat Distress Signals 3 | . . . . . 3 Communications Jammed . | . . . . . . Distress Signals . | . . . . . . Times Spotted 52 | . 19 6 . . 27 Peak Tracking Total 9 | . 5 3 . . 9 Tactical Retreats . | . . . . . . Traps | -11 -10 -10 -10 -9 -8 ------- Run | Yrd Mat Min Exi Min Mat Traps Triggered 1 | . 1 . . . . Indirectly . | . . . . . . Trap Hack Attempts . | . . . . . . Triggered . | . . . . . . Disarmed . | . . . . . . Reprogrammed . | . . . . . . Reused . | . . . . . . Traps Extracted . | . . . . . . Installed . | . . . . . . Triggered . | . . . . . . Machines | -11 -10 -10 -10 -9 -8 ---------- Run | Yrd Mat Min Exi Min Mat Machines Disabled 10 | . 3 1 . . 6 Max in Single Turn 2 | . 1 1 . . 2 Garrison Access 1 | . . . . . 1 Machines Repaired . | . . . . . . Machines Dismantled . | . . . . . . Machines Sabotaged . | . . . . . . Overloaded Fab Kills . | . . . . . . Hacking | -11 -10 -10 -10 -9 -8 --------- Run | Yrd Mat Min Exi Min Mat Machines Accessed 13 | . 8 . 5 . . Terminals 5 | . 5 . . . . Fabricators . | . . . . . . Repair Stations 1 | . 1 . . . . Recycling Units 2 | . 2 . . . . Scanalyzers . | . . . . . . Garrison Access . | . . . . . . Total Hacks 69 | . 19 . 50 . . Successful 58 | . 8 . 50 . . Failed 11 | . 11 . . . . Catastrophic . | . . . . . . Database Lockouts . | . . . . . . Manual 2 | . . . 2 . . Terminals 12 | . 12 . . . . Fabricators . | . . . . . . Repair Stations 3 | . 3 . . . . Recycling Units 4 | . 4 . . . . Scanalyzers . | . . . . . . Garrison Access . | . . . . . . Terminal Hacks 53 | . 3 . 50 . . Record 49 | . . . 49 . . Prototype ID Bank 1 | . 1 . . . . Zone Layout 2 | . 2 . . . . Derelict Proto ID Bank 1 | . . . 1 . . Fabricator Hacks . | . . . . . . Repair Station Hacks 2 | . 2 . . . . Scan Component 1 | . 1 . . . . Repair 1 | . 1 . . . . Recycling Unit Hacks 3 | . 3 . . . . Process 1 | . 1 . . . . Report Inventory 2 | . 2 . . . . Scanalyzer . | . . . . . . Garrison Access Hacks . | . . . . . . Unauthorized Hacks . | . . . . . . Terminals . | . . . . . . Fabricators . | . . . . . . Repair Stations . | . . . . . . Recycling Units . | . . . . . . Scanalyzers . | . . . . . . Garrison Access . | . . . . . . Data Cores Recovered . | . . . . . . Used . | . . . . . . Hacking Detections 5 | . 5 . . . . Full Trace Events 3 | . 3 . . . . Feedback Events . | . . . . . . Feedback Blocked . | . . . . . . Robot Schematics Acquired . | . . . . . . Robots Built . | . . . . . . Authchips . | . . . . . . Time . | . . . . . . Total Robot Build Rating . | . . . . . . Part Schematics Acquired . | . . . . . . Parts Built . | . . . . . . Authchips . | . . . . . . Time . | . . . . . . Total Part Build Rating . | . . . . . . Parts Repaired 1 | . 1 . . . . Time 26 | . 26 . . . . Parts Recycled . | . . . . . . Recycled Matter 171 | . 171 . . . . Retrieved Matter . | . . . . . . Retrieved Components . | . . . . . . Parts Scanalyzed . | . . . . . . Part Schematics Acquired . | . . . . . . Parts Damaged . | . . . . . . Bothacking | -11 -10 -10 -10 -9 -8 ------------ Run | Yrd Mat Min Exi Min Mat Used RIF Installer . | . . . . . . Robots Hacked . | . . . . . . Non-combat . | . . . . . . Combat . | . . . . . . Robot Hacks Applied . | . . . . . . Relay Couplers Released 2 | . . . . . 2 Machine Destruction 2 | . . . . . 2 Fabnet Peak Effective % . | . . . . . . Robots Rewired . | . . . . . . Allies Hacked . | . . . . . . Hacks Repelled . | . . . . . . Allies | -11 -10 -10 -10 -9 -8 -------- Run | Yrd Mat Min Exi Min Mat Total Allies 1 | . . . . 1 . Largest Group 1 | . . . . 1 1 Highest-Rated Group 31 | . . . . 31 31 Highest-Rated Ally 31 | . . . . 31 31 Total Orders . | . . . . . . Ally Attacks 6 | . . . . . 6 Total Damage 106 | . . . . . 106 Kills 2 | . . . . . 2 Allies Corrupted . | . . . . . . Allies Melted . | . . . . . . Intel | -11 -10 -10 -10 -9 -8 ------- Run | Yrd Mat Min Exi Min Mat Robot Analysis Total . | . . . . . . Derelict Logs Recovered 2 | . . 1 . 1 . Drone Launches . | . . . . . . Drone Recoveries . | . . . . . . Exploration | -11 -10 -10 -10 -9 -8 ------------- Run | Yrd Mat Min Exi Min Mat Turns Passed 6428 | 77 2152 1505 1744 222 728 Spaces Moved 1815 | 49 614 466 544 70 72 Core 39 | 12 . . . . 27 Treads 1762 | 37 614 466 544 70 31 Legs 14 | . . . . . 14 Wheels . | . . . . . . Hover . | . . . . . . Flight . | . . . . . . Fastest Speed 50 | 50 160 320 320 320 160 Average Speed 335 | 133 318 320 320 320 845 Slowest Speed 1850 | 160 480 320 320 320 1850 Overloaded Moves . | . . . . . . Propulsion Burnouts . | . . . . . . Robots Hopped . | . . . . . . Cave-ins Triggered . | . . . . . . Exploration Rate (%) 45 | 4 92 73 73 18 12 Regions Visited 5 Branch Regions 3 Pre-discovered Areas 2 | . . 1 1 . . Known Exits Taken 3 | . 1 1 1 . . Unknown Exits Taken 2 | 1 . . . 1 . Scrap Searched 1 | . . . . 1 . Spaces Dug . | . . . . . . Terrain Destroyed 45 | . 28 2 . . 15 Melee . | . . . . . . Projectile . | . . . . . . AOE 45 | . 28 2 . . 15 Terrain Rammed . | . . . . . . Walls Destroyed . | . . . . . . Machines Disabled . | . . . . . . Actions | -11 -10 -10 -10 -9 -8 --------- Run | Yrd Mat Min Exi Min Mat Total 2018 | 61 719 473 551 70 144 Wait 36 | . 36 . . . . Move 1810 | 48 613 465 543 69 72 Hop . | . . . . . . Pick Up 34 | 7 11 2 2 1 11 Fast Attach . | . . . . . . Attach 30 | 6 5 . 2 . 17 Detach 3 | . . . 2 . 1 Swap 5 | . 2 2 . . 1 Drop 8 | . 1 . 2 . 5 Fire 90 | . 51 2 . . 37 Melee . | . . . . . . Ram . | . . . . . . Kick . | . . . . . . Crush 2 | . . 2 . . . Escape Stasis . | . . . . . . Rewire . | . . . . . . Trap . | . . . . . . Miscellaneous . | . . . . . . Route ------- -11/Scrapyard -10/Materials (discovered 5 exits: *Mat x3 / *Min x2) -10/Mines (discovered 4 exits: *Mat x2 / *Exi / *Sub) -10/Exiles (discovered 2 exits: *Min x2) -9/Mines -8/Materials History --------- Turn | Location | Event 37 | -11/Scrapyard | Discovered new exit (range 15) 78 | -11/Scrapyard | Entered Materials 303 | -10/Materials | Build established: Mutant 359 | -10/Materials | Discovered new exit (range 15) 626 | -10/Materials | Discovered new exit (range 15) 1037 | -10/Materials | Discovered new exit (range 7) 1469 | -10/Materials | Discovered new exit (range 3) 1478 | -10/Materials | Identified exit to Materials 1918 | -10/Materials | Discovered new exit (range 8) 1940 | -10/Materials | Identified exit to Mines 2122 | -10/Materials | Repaired Lgt. Treads 2230 | -10/Materials | Entered Mines 2354 | -10/Mines | Discovered exit to Materials (range 2) 2447 | -10/Mines | Received a Rocket Launcher from a helpful Derelict 2483 | -10/Mines | Learned location of Mines (-9) 2636 | -10/Mines | Found a hidden stash of uninstalled traps 2649 | -10/Mines | Discovered new exit (range 9) 2691 | -10/Mines | Identified exit to Subcaves 2825 | -10/Mines | Deemed a non-threat by the Exiles lab entrance 2825 | -10/Mines | Discovered new exit (range 5) 2835 | -10/Mines | Identified exit to Exiles 3174 | -10/Mines | Found a damaged Exp. Sensor Array with a note attached 3180 | -10/Mines | Found Prototype Device 3322 | -10/Mines | Discovered exit to Materials (range 8) 3735 | -10/Mines | Entered Exiles 3780 | -10/Exiles | Discovered new exit (range 15) 3822 | -10/Exiles | Identified exit to Mines 3889 | -10/Exiles | Met 8R-AWN 3953 | -10/Exiles | Met EX-HEX 4177 | -10/Exiles | Met EX-DEC 4279 | -10/Exiles | Learned location of Zion (-7) 4407 | -10/Exiles | Discovered exit to Mines (range 12) 4726 | -10/Exiles | Met EX-BIN 4771 | -10/Exiles | Aligned with FarCom system 4774 | -10/Exiles | Given EX-Vault access code 4915 | -10/Exiles | Opened EX-Vault 4927 | -10/Exiles | Found Prototype Energy Cannon 4929 | -10/Exiles | Identified Firepult 4931 | -10/Exiles | Identified Exp. Sensor Array 5153 | -10/Exiles | Warned to stay clear of 0b10 Research branches 5479 | -10/Exiles | Left Exiles lab with Firepult 5479 | -10/Exiles | Entered Mines 5484 | -9/Mines | Assembled infested the area 5489 | -9/Mines | Assisted by a Guerilla fighting off Assembled 5547 | -9/Mines | Learned Materials security intel 5569 | -9/Mines | Discovered new exit (range 15) 5578 | -9/Mines | Received a Mining Laser from a helpful Derelict 5701 | -9/Mines | Entered Materials 5701 | -8/Materials | Accompanied by 1 ally 5701 | -8/Materials | Evolved 4 slots: Propulsion x2, Utility x2 5738 | -8/Materials | Garrison activated, responded to threat 5777 | -8/Materials | Build established: Skirmisher 5854 | -8/Materials | Core integrity fell below 50% 5876 | -8/Materials | Destroyed 10 combat bots 5982 | -8/Materials | Lost 4 parts (1p3n) 6011 | -8/Materials | Core integrity fell below 20% 6054 | -8/Materials | Lost 3 parts (3w) 6107 | -8/Materials | Build established: Mutant 6429 | -8/Materials | Destroyed by H-55 Commando with Gauss Rifle Last Messages --------------- Med. Laser destroyed. Acquired 10 matter. Penetrated by Slug. U-05 Engineer lays Concrete. Penetrated by Slug. Tractor Beam destroyed. U-05 Engineer lays Concrete. Penetrated by Slug. U-05 Engineer lays Concrete. Penetrated by Slug. U-05 Engineer lays Concrete. Slug penetrates Earth. Beam Cannon destroyed. U-05 Engineer lays Concrete. U-05 Engineer builds a Wall. Slug penetrates Wall. Aluminum Leg destroyed. Acquired Mni. Grenade Launcher. U-05 Engineer builds a Door. Penetrated by Slug. Map ----- +----------------------------------------------------+ | | | | | | | | | | | | | | | | | | | | | | | | | | | | | | | | | | | | | | | ????????????????????????####?????????????????????? | | ???????????????????????# #????????????????????? | | ???????????????????????# ! "#????????????????????? | | ???????????????????????# T#????????????????????? | | ???????????????????????# "#????????????????????? | | ##??########??????????## #????????????????????? | | #??#* *!!#??????????# @] #????????????????????? | | #??# **!!#????####??## ] #????????????????????? | | #??# #???## ##### #????????????????????? | | #### #######!# T##h####???????????????????? | | !! #???????????????????? | | ! % +???????????????????? | | !! #???????????????????? | | ##### #???????????????????? | | ????# #???????????????????? | | ???## ! % /#???????????????????? | | ! * ! u #???????????????????? | | ! * *=[ ????????????????? | | = ???????????????? | | = ???????????????? | | % ###+###########??????????????? | | % % % %## ??????????????????????? | | % ## ??????????????????????? | | % #? ??????????????????????? | | #??=/ ???????????????????????? | | " % #???/ ???????????????????????? | | ? #?????????????????????????????? | | ??? #?????????????????????????????? | | ????##"T ####### #?????????????????????????????? | | ???????##??????? #?????????????????????????????? | | ???????????????? ^^#?????????????????????????????? | +----------------------------------------------------+ Best States ------------- Heat Dissipation 31 Energy Generation 15 Energy Capacity 250 Matter Stores 300 Matter Capacity 300 Sight Range 16 Robot Scan Range 20 Terrain Scan Density 10 Evasion (%) 50 Targeting Accuracy 5 Recoil Reduction 4 Item Schematics ----------------- None Robot Schematics ------------------ None Fabricated ------------ Nothing Alien Tech Used ----------------- None Achievements -------------- Librarian Tourist Challenges ------------ None Game ------ Seed FortressBehemothDoomcannon Manual? 0 Play Time 00:37:25 Cumulative 7.0 hours Start 2024.07.05 @ 17:00:15 End 2024.07.05 @ 17:36:53 Sessions 1 Manual Loads 0 Difficulty Rogue Special Mode None Game No. 14 Rogue 14 Adventurer 0 Explorer 0 Win Type - Total 0 Types 0/0/0/0/0/0/0/0/0 Lore% 9 Gallery% 12 Achievement% 11 Wizard Run 0 Options --------- Layout 1 ASCII 0 Keyboard 0 Movement Mouse Keybinds 0 Fullscreen 1 Font 24/Crisp Map View 50x35 Zoom Use 0% Tactical HUD 0 Map Filters NONE Filters NONE Steam 1 RUN: 6cb87d95-1802-4fbe-bae2-e0926711bf05